fUST/lending_fUST_20260307
["ID","MTS","AMOUNT","RATE_DAILY","PERIOD"]
[407867332,1772847046265,-1940.54021849,2.5e-05,2]
[407867347,1772847483581,251.11,3.8e-06,2]
[407867348,1772847483748,251.11,3.8e-06,2]
[407867349,1772847484137,251.1,3.8e-06,2]
[407867389,1772848232167,-3168.85606176,2.329e-05,2]
[407867390,1772848232223,-755.23391621,2.329e-05,2]
[407867391,1772848232234,-418.06819702,2.329e-05,2]
[407867392,1772848232245,-657.84182501,2.329e-05,2]
[407867393,1772848232254,-426.08821428,2.388e-05,2]
[407867394,1772848232264,-982.0,2.522e-05,2]
[407867395,1772848232273,-300.0,2.522e-05,2]
[407867396,1772848232282,-500.0,2.523e-05,2]
[407867397,1772848232292,-500.0,2.523e-05,2]
[407867398,1772848232301,-500.0,2.523e-05,2]
[407867399,1772848232310,-500.0,2.523e-05,2]
[407867400,1772848232319,-500.0,2.523e-05,2]
[407867401,1772848232329,-462.44607519,2.523e-05,2]
[407867402,1772848232338,-500.0,2.523e-05,2]
[407867403,1772848232346,-500.0,2.523e-05,2]
[407867404,1772848232355,-6808.28882027,2.542e-05,2]
[407867598,1772848240718,-3161.85952668,2.542e-05,2]
[407867599,1772848240772,-2279.5,2.542e-05,2]
[407867600,1772848240827,-19994.25349872,2.542e-05,2]
[407867608,1772848243386,-6781.62317707,2.542e-05,2]
[407867609,1772848243418,-4350.55679965,2.542e-05,2]
[407867613,1772848246204,-9255.28352557,2.542e-05,2]
[407867614,1772848246257,-3169.89198767,2.542e-05,2]
[407867615,1772848246269,-2997.23367833,2.542e-05,2]
[407867616,1772848246364,-2430.75592942,2.542e-05,2]
[407867624,1772849227646,10000.0,0.000114,120]
[407867625,1772849252626,10000.0,0.000114,120]
[407867626,1772849283045,175.78,3.8e-06,2]
[407867627,1772849283550,175.78,3.8e-06,2]
[407867628,1772849283836,175.76,3.8e-06,2]
[407867657,1772849432370,-776.19205548,2.079e-05,2]
[407867659,1772849432382,-594.54488708,2.079e-05,2]
[407867660,1772849432394,-51.41623318,2.079e-05,2]
[407867661,1772849432403,-3157.39612725,2.1e-05,2]
[407867662,1772849432415,-1842.60387275,2.1e-05,2]
[407867663,1772849432424,-300.0,2.163e-05,2]
[407867664,1772849432433,-435.11677996,2.197e-05,2]
[407867665,1772849432442,-208.72199479,2.379e-05,2]
[407867666,1772849432453,-211.27800521,2.379e-05,2]
[407867667,1772849432463,-192.43027691,2.516e-05,2]
[407867668,1772849432472,-227.711642,2.523e-05,2]
[407867669,1772849432483,-272.288358,2.523e-05,2]
[407867670,1772849432492,-500.0,2.523e-05,2]
[407867671,1772849432502,-500.0,2.523e-05,2]
[407867672,1772849432513,-2000.0,2.542e-05,2]
[407867673,1772849432523,-465.71241253,2.55e-05,2]
[407867674,1772849432533,-176.5694578,2.562e-05,2]
[407867675,1772849432542,-5085.42976967,2.562e-05,2]
[407867676,1772849432896,-3879.68300592,2.562e-05,2]
[407867690,1772849438431,-4649.29749669,2.058e-05,2]
[407867691,1772849438440,-2099.55699251,2.562e-05,2]
[407867692,1772849438449,-4414.5797507,2.562e-05,2]
[407867693,1772849438460,-7604.0938815,2.562e-05,2]
[407867694,1772849438469,-401.35916644,2.6e-05,2]
[407867695,1772849438478,-587.0,2.617e-05,2]
[407867696,1772849438487,-500.0,2.7e-05,2]
[407867697,1772849438497,-171.35299626,2.7e-05,2]
[407867698,1772849438506,-250.45388749,2.803e-05,2]
[407867699,1772849438515,-2000.0,2.803e-05,2]
[407867700,1772849438526,-200.11,2.803e-05,2]
[407867701,1772849438535,-823.0,2.879e-05,2]
[407867702,1772849438545,-176.5694578,2.894e-05,2]
[407867703,1772849438554,-2468.8615373,2.901e-05,2]
[407867704,1772849438569,-2681.7285723,2.901e-05,2]
[407867705,1772849438578,-150.107,2.938e-05,2]
[407867706,1772849438587,-150.096,2.942e-05,2]
[407867707,1772849438596,-150.098,2.942e-05,2]
[407867708,1772849438606,-150.034,2.942e-05,2]
[407867709,1772849438616,-639.0,2.942e-05,2]
[407867710,1772849438625,-2190.0,2.942e-05,2]
[407867711,1772849438634,-1391.0,2.942e-05,2]
[407867712,1772849438644,-434.0,2.942e-05,2]
[407867713,1772849438653,-434.0,2.942e-05,2]
[407867714,1772849438663,-732.0,2.942e-05,2]
[407867715,1772849438672,-1230.46,2.971e-05,2]
[407867716,1772849438681,-550.8774702,2.976e-05,2]
[407867717,1772849438691,-598.3745258,2.976e-05,2]
[407867718,1772849438700,-500.0,3e-05,2]
[407867719,1772849438709,-824.81239528,3.071e-05,2]
[407867720,1772849438718,-1000.0,3.071e-05,2]
[407867721,1772849438727,-454.71784858,3.071e-05,2]
[407867722,1772849438737,-1152.0,3.167e-05,2]
[407867723,1772849438747,-787.0,3.2e-05,2]
[407867724,1772849438756,-176.5694578,3.226e-05,2]
[407867725,1772849438766,-377.64,3.4e-05,2]
[407867726,1772849438775,-1000.0,3.4e-05,2]
[407867727,1772849438784,-1613.0,3.484e-05,2]
[407867728,1772849438793,-176.5694578,3.558e-05,2]
[407867729,1772849438804,-1000.0,3.6e-05,2]
[407867730,1772849438814,-1500.0,3.618e-05,2]
[407867731,1772849438823,-160.0,3.738e-05,3]
[407867732,1772849438832,-160.0,3.774e-05,4]
[407867733,1772849438841,-188.92,3.779e-05,2]
[407867734,1772849438851,-1000.0,3.8e-05,2]
[407867735,1772849438862,-160.0,3.809e-05,5]
[407867736,1772849438872,-2258.0,3.832e-05,2]
[407867737,1772849438882,-160.0,3.845e-05,6]
[407867738,1772849438891,-160.0,3.881e-05,7]
[407867739,1772849438902,-1000.0,3.9e-05,2]
[407867740,1772849438912,-160.0,3.916e-05,8]
[407867741,1772849438921,-160.0,3.952e-05,9]
[407867742,1772849438931,-160.0,3.988e-05,10]
[407867743,1772849438941,-187.06,4e-05,2]
[407867744,1772849438951,-160.0,4.023e-05,11]
[407867745,1772849438960,-160.0,4.059e-05,12]
[407867746,1772849438969,-160.0,4.094e-05,13]
[407867747,1772849438978,-160.0,4.13e-05,14]
[407867748,1772849438987,-160.0,4.166e-05,15]
[407867749,1772849438995,-1666.36622632,4.166e-05,2]
[407867750,1772849439005,-513.43780036,4.197e-05,2]
[407867751,1772849439014,-160.0,4.201e-05,16]
[407867752,1772849439023,-3162.0,4.215e-05,2]
[407867753,1772849439032,-160.0,4.237e-05,17]
[407867754,1772849439041,-160.0,4.273e-05,18]
[407867755,1772849439051,-160.0,4.308e-05,19]
[407867756,1772849439060,-160.0,4.344e-05,20]
[407867757,1772849439069,-160.0,4.379e-05,21]
[407867758,1772849439078,-800.0,4.399e-05,2]
[407867759,1772849439087,-160.0,4.415e-05,22]
[407867760,1772849439097,-304.55159929,4.415e-05,5]
[407867761,1772849439106,-905.0,4.637e-05,2]
[407867762,1772849439116,-255.63142753,4.749e-05,2]
[407867763,1772849439125,-500.0,4.749e-05,2]
[407867764,1772849439135,-445.202766,4.749e-05,2]
[407867765,1772849439144,-162.380719,4.749e-05,2]
[407867766,1772849439153,-500.0,4.749e-05,2]
[407867767,1772849439162,-500.0,4.749e-05,2]
[407867768,1772849439172,-500.0,4.749e-05,2]
[407867769,1772849439181,-250.0,4.749e-05,2]
[407867770,1772849439190,-500.0,4.749e-05,2]
[407867771,1772849439199,-1957.856,4.749e-05,2]
[407867772,1772849439208,-500.0,4.749e-05,2]
[407867773,1772849439217,-250.0,4.749e-05,2]
[407867774,1772849439227,-162.380719,4.749e-05,2]
[407867775,1772849439236,-168.3888056,4.749e-05,2]
[407867776,1772849439245,-250.0,4.749e-05,2]
[407867777,1772849439254,-174.61919141,4.749e-05,2]
[407867778,1772849439263,-250.0,4.749e-05,2]
[407867779,1772849439272,-181.08010149,4.749e-05,2]
[407867780,1772849439281,-190.51245828,4.749e-05,2]
[407867846,1772849446490,-59.48754172,4.749e-05,2]
[407867847,1772849446504,-187.78006525,4.749e-05,2]
[407867848,1772849446516,-250.0,4.749e-05,2]
[407867849,1772849446528,-43.65610468,4.749e-05,2]
[407867850,1772849446543,-151.07182298,4.749e-05,2]
[407867851,1772849446556,-250.0,4.749e-05,2]
[407867852,1772849446568,-201.93286099,4.749e-05,2]
[407867853,1772849446582,-250.0,4.749e-05,2]
[407867854,1772849446595,-209.40437684,4.749e-05,2]
[407867855,1772849446608,-250.0,4.749e-05,2]
[407867856,1772849446620,-217.15233878,4.749e-05,2]
[407867857,1772849446632,-500.0,4.749e-05,2]
[407867858,1772849446644,-250.0,4.749e-05,2]
[407867859,1772849446656,-250.0,4.749e-05,2]
[407867860,1772849446668,-225.18697532,4.749e-05,2]
[407867861,1772849446679,-250.0,4.749e-05,2]
[407867862,1772849446692,-233.51889341,4.749e-05,2]
[407867863,1772849446704,-250.0,4.749e-05,2]
[407867864,1772849446715,-242.15909246,4.749e-05,2]
[407867865,1772849446728,-250.0,4.749e-05,2]
[407867866,1772849446739,-500.0,4.749e-05,2]
[407867867,1772849446751,-251.11897888,4.749e-05,2]
[407867868,1772849446763,-250.0,4.749e-05,2]
[407867869,1772849446775,-260.4103811,4.749e-05,2]
[407867870,1772849446786,-250.0,4.749e-05,2]
[407867871,1772849446798,-270.0455652,4.749e-05,2]
[407867872,1772849446810,-250.0,4.749e-05,2]
[407867873,1772849446821,-280.03725112,4.749e-05,2]
[407867874,1772849446832,-250.0,4.749e-05,2]
[407867875,1772849446842,-290.39862941,4.749e-05,2]
[407867876,1772849446854,-301.1433787,4.749e-05,2]
[407867877,1772849446868,-500.0,4.749e-05,2]
[407867878,1772849446879,-500.0,4.749e-05,2]
[407867879,1772849446890,-500.0,4.749e-05,2]
[407867880,1772849446902,-500.0,4.749e-05,2]
[407867881,1772849446913,-500.0,4.749e-05,2]
[407867882,1772849446925,-500.0,4.749e-05,2]
[407867883,1772849446936,-434.32285021,4.749e-05,2]
[407867884,1772849446947,-537.6845,4.749e-05,2]
[407867885,1772849446959,-2150.738,4.749e-05,2]
[407867886,1772849446970,-11552.65042553,4.75e-05,2]
[407867887,1772849446992,-6779.08635505,4.75e-05,2]
[407867888,1772849452921,236.5400983,1.567e-05,2]
[407867892,1772849741305,18833.21,0.000114,120]
[407867899,1772850624208,-1025.26122947,2.869e-05,2]
[407867903,1772850631568,-891.0,2.869e-05,2]
[407867904,1772850631581,-500.0,2.869e-05,2]
[407868126,1772850637666,-2583.73877053,2.869e-05,2]
[407868127,1772850637675,-5000.18146696,2.9e-05,3]
[407868128,1772850637686,-2479.21853304,2.9e-05,3]
[407868129,1772850637695,-420.82559047,2.928e-05,2]
[407868130,1772850637704,-300.0,2.957e-05,2]
[407868131,1772850637714,-300.0,2.957e-05,2]
[407868132,1772850637724,-300.0,2.957e-05,2]
[407868133,1772850637733,-300.0,2.957e-05,2]
[407868134,1772850637742,-300.0,2.957e-05,2]
[407868135,1772850637752,-300.0,2.957e-05,2]
[407868136,1772850637761,-300.0,2.957e-05,2]
[407868137,1772850637770,-300.0,2.957e-05,2]
[407868138,1772850637779,-300.0,2.957e-05,2]
[407868139,1772850637788,-300.0,2.957e-05,2]
[407868140,1772850637797,-300.0,2.957e-05,2]
[407868141,1772850637806,-300.0,2.957e-05,2]
[407868142,1772850637815,-300.0,2.957e-05,2]
[407868143,1772850637826,-300.0,2.957e-05,2]
[407868144,1772850637838,-300.0,2.957e-05,2]
[407868145,1772850637846,-500.0,2.96e-05,2]
[407868146,1772850637855,-500.0,2.96e-05,2]
[407868147,1772850637864,-500.0,2.96e-05,2]
[407868148,1772850637874,-500.0,2.96e-05,2]
[407868149,1772850637882,-498.788,3.117e-05,2]
[407868150,1772850637891,-643.65746826,3.117e-05,2]
[407868151,1772850637902,-747.34253174,3.117e-05,2]
[407868152,1772850637911,-639.0,3.117e-05,2]
[407868153,1772850637920,-454.314,3.117e-05,2]
[407868154,1772850637929,-3.86321689,3.117e-05,2]
[407868185,1772850642902,-325.55877297,3.117e-05,2]
[407868194,1772850645575,-402.57801014,3.117e-05,2]
[407868195,1772850645585,-600.0,3.178e-05,2]
[407868196,1772850645595,-382.9,3.4e-05,2]
[407868197,1772850645605,-720.0,3.496e-05,2]
[407868198,1772850645614,-1000.0,3.508e-05,2]
[407868199,1772850645624,-1000.0,3.508e-05,2]
[407868200,1772850645634,-1000.0,3.508e-05,2]
[407868201,1772850645644,-1000.0,3.508e-05,2]
[407868202,1772850645653,-300.0,3.577e-05,2]
[407868203,1772850645663,-300.0,3.577e-05,2]
[407868204,1772850645673,-300.0,3.577e-05,2]
[407868205,1772850645683,-300.0,3.577e-05,2]
[407868206,1772850645692,-787.0,3.8e-05,2]
[407868207,1772850645701,-864.0,3.846e-05,2]
[407868208,1772850645710,-1500.0,4.056e-05,2]
[407868209,1772850645719,-1500.0,4.056e-05,2]
[407868210,1772850645728,-1500.0,4.056e-05,2]
[407868211,1772850645739,-1500.0,4.056e-05,2]
[407868212,1772850645748,-500.0,4.17e-05,2]
[407868213,1772850645758,-1000.0,4.23e-05,2]
[407868214,1772850645767,-160.0,4.415e-05,5]
[407868215,1772850645776,-151.1304968,4.5e-05,3]
[407868216,1772850645785,-152.97272027,4.5e-05,3]
[407868217,1772850645794,-2000.0,4.604e-05,2]
[407868218,1772850645804,-2000.0,4.604e-05,2]
[407868219,1772850645819,-2000.0,4.604e-05,2]
[407868220,1772850645832,-2000.0,4.604e-05,2]
[407868221,1772850645841,-60136.39305346,4.631e-05,2]
[407868222,1772850645853,-10501.62486935,4.631e-05,2]
[407868328,1772851731283,222.0,0.000114,120]
[407868356,1772851831718,-696.01276113,2.666e-05,2]
[407868618,1772851842982,-438.87021569,2.666e-05,2]
[407868621,1772851845735,-3865.11702318,2.666e-05,2]
[407868622,1772851845744,-61162.85747949,2.7e-05,2]
[407868623,1772851845755,-6200.0,2.7e-05,2]
[407868624,1772851845788,-450.74156362,2.7e-05,2]
[407868625,1772851845799,-280.70606371,2.7e-05,2]
[407868627,1772852273454,175.941698,1.831e-05,2]
[407868629,1772852442612,294.48854762,2e-05,2]
[407868630,1772852721206,-175.941698,2.024e-05,2]
[407868631,1772852721227,-412.40907866,2.072e-05,2]
[407868632,1772852721248,-175.941698,2.216e-05,2]
[407868633,1772852721270,-152.24778416,2.5e-05,2]
[407868634,1772852721293,-155.91248062,2.5e-05,2]
[407868635,1772852721313,-500.0,2.523e-05,2]
[407868636,1772852721334,-500.0,2.523e-05,2]
[407868637,1772852721357,-2927.54726056,2.548e-05,2]
[407868638,1772852732961,-5000.0,2.548e-05,2]
[407868643,1772852746181,-5000.0,2.548e-05,2]
[407868644,1772852754499,-5000.0,2.548e-05,2]
[407868647,1772852832708,-5000.0,2.5e-05,2]
[407868648,1772852839715,-5000.0,2.5e-05,2]
[407868649,1772852848433,-1598.42163925,2.5e-05,2]
[407868650,1772852848454,-3401.57836075,2.5e-05,2]
[407868651,1772852857682,-5000.0,2.5e-05,2]
[407868653,1772852926489,-300.0,2.499e-05,2]
[407868654,1772852926514,-19700.0,2.5e-05,2]
[407869037,1772853040500,-44.04304023,2.5e-05,2]
[407869047,1772853045877,-696.01276113,2.475e-05,2]
[407869048,1772853045888,-625.43269715,2.5e-05,2]
[407869049,1772853045898,-4943.0571966,2.5e-05,2]
[407869053,1772853098186,-200.0,0.00012121,120]
[407869054,1772853113248,164.3046588,1.611e-05,2]
[407869057,1772853298377,1279.2317103,1.586e-05,2]
[407869072,1772854224463,-2128.64866603,2.396e-05,2]
[407869082,1772854232024,-2871.35133397,2.396e-05,2]
[407869084,1772854232034,-158.47605567,2.421e-05,2]
[407869086,1772854232043,-2971.62578346,2.5e-05,2]
[407869227,1772854238148,-7660.43217512,2.5e-05,2]
[407869229,1772854238160,-1134.089456,2.5e-05,2]
[407869231,1772854238172,-2969.89313472,2.5e-05,2]
[407869324,1772854240610,-1755.24845086,2.496e-05,2]
[407869346,1772854246263,-1863.50772804,2.471e-05,2]
[407869347,1772854246278,-3136.49227196,2.471e-05,2]
[407869348,1772854246287,-76.52147165,2.496e-05,2]
[407869487,1772855438331,-4179.94926709,2.178e-05,2]
[407869489,1772855438343,-250.0,2.2e-05,2]
[407869492,1772855438355,-418.69992873,2.422e-05,2]
[407869493,1772855438366,-300.0,2.471e-05,2]
[407869494,1772855438377,-300.0,2.472e-05,2]
[407869495,1772855438388,-300.0,2.472e-05,2]
[407869496,1772855438399,-300.0,2.472e-05,2]
[407869497,1772855438412,-300.0,2.472e-05,2]
[407869498,1772855438423,-500.0,2.473e-05,2]
[407869499,1772855438434,-500.0,2.473e-05,2]
[407869500,1772855438445,-500.0,2.473e-05,2]
[407869501,1772855438456,-500.0,2.473e-05,2]
[407869502,1772855438468,-500.0,2.473e-05,2]
[407869503,1772855438479,-500.0,2.473e-05,2]
[407869504,1772855438490,-500.0,2.473e-05,2]
[407869505,1772855438502,-85017.75596,2.495e-05,2]
[407869506,1772855438513,-42463.6166313,2.496e-05,2]
[407869507,1772855438526,-79102.11018957,2.496e-05,2]
[407869508,1772855438537,-1924.84328497,2.496e-05,2]
[407869509,1772855438547,-256.29892117,2.5e-05,2]
[407869510,1772855438558,-427.36965014,2.5e-05,2]
[407869511,1772855438569,-487.56929924,2.5e-05,2]
[407869512,1772855438580,-464.78593546,2.5e-05,2]
[407869513,1772855438591,-311.0,2.719e-05,2]
[407869514,1772855438602,-10000.0,2.74e-05,2]
[407869515,1772855438620,-151.0,2.74e-05,2]
[407869516,1772855438634,-151.0,2.74e-05,2]
[407869517,1772855438649,-151.0,2.74e-05,2]
[407869518,1772855438662,-151.0,2.848e-05,2]
[407869519,1772855438676,-151.0,2.848e-05,2]
[407869520,1772855438690,-11199.4054437,2.848e-05,2]
[407869521,1772855438703,-300.0,2.916e-05,2]
[407869522,1772855438716,-300.0,2.916e-05,2]
[407869523,1772855438730,-300.0,2.916e-05,2]
[407869524,1772855438742,-300.0,2.916e-05,2]
[407869525,1772855438754,-300.0,2.916e-05,2]
[407869526,1772855438767,-300.0,2.916e-05,2]
[407869527,1772855438784,-300.0,2.916e-05,2]
[407869528,1772855438807,-300.0,2.916e-05,2]
[407869529,1772855438823,-300.0,2.916e-05,2]
[407869532,1772855438836,-300.0,2.916e-05,2]
[407869534,1772855438848,-300.0,2.916e-05,2]
[407869537,1772855438861,-300.0,2.916e-05,2]
[407869539,1772855438874,-300.0,2.916e-05,2]
[407869593,1772855439372,-300.0,2.916e-05,2]
[407869594,1772855439546,-300.0,2.916e-05,2]
[407869595,1772855439585,-600.0,2.916e-05,2]
[407869596,1772855439602,-376.37,2.97e-05,30]
[407869597,1772855439612,-3000.0,3e-05,30]
[407869598,1772855439621,-3000.0,3.01e-05,30]
[407869599,1772855439630,-153.1027,3.01e-05,2]
[407869600,1772855439639,-151.0,3.01e-05,2]
[407869601,1772855439649,-3000.0,3.02e-05,30]
[407869602,1772855439658,-1000.0,3.021e-05,2]
[407869603,1772855439667,-1000.0,3.021e-05,2]
[407869604,1772855439676,-1000.0,3.021e-05,2]
[407869605,1772855439685,-1000.0,3.021e-05,2]
[407869606,1772855439694,-1000.0,3.021e-05,2]
[407869607,1772855439703,-1000.0,3.021e-05,2]
[407869608,1772855439713,-1000.0,3.021e-05,2]
[407869609,1772855439722,-3000.0,3.03e-05,30]
[407869610,1772855439731,-3000.0,3.04e-05,30]
[407869611,1772855439740,-151.0,3.04e-05,2]
[407869612,1772855439750,-3000.0,3.05e-05,30]
[407869613,1772855439759,-151.0,3.05e-05,2]
[407869614,1772855439768,-3000.0,3.06e-05,30]
[407869615,1772855439777,-3000.0,3.07e-05,30]
[407869616,1772855439786,-3000.0,3.08e-05,30]
[407869617,1772855439795,-3000.0,3.09e-05,30]
[407869618,1772855439804,-3000.0,3.1e-05,30]
[407869619,1772855439813,-3000.0,3.11e-05,30]
[407869620,1772855439822,-2427.81360225,3.12e-05,30]
[407869625,1772855440695,-572.18639775,3.12e-05,30]
[407869626,1772855440705,-537.64235466,3.13e-05,30]
[407869636,1772855446415,-409.68976224,3.13e-05,30]
[407869637,1772855446430,-1043.45699513,3.13e-05,30]
[407869717,1772856632272,-3085.70101324,2.182e-05,2]
[407869720,1772856632283,-865.98479229,2.182e-05,2]
[407869898,1772856638684,-340.58108477,2.182e-05,2]
[407869900,1772856638694,-707.7331097,2.182e-05,2]
[407869901,1772856638703,-414.67072905,2.226e-05,2]
[407869902,1772856638712,-175.941698,2.249e-05,2]
[407869903,1772856638721,-175.941698,2.367e-05,2]
[407869904,1772856638731,-175.941698,2.486e-05,2]
[407869905,1772856638741,-152.76069623,2.5e-05,2]
[407869906,1772856638751,-157.25292523,2.5e-05,2]
[407869907,1772856638765,-158.22672179,2.5e-05,2]
[407869908,1772856638777,-158.8182651,2.5e-05,2]
[407869909,1772856638788,-416.93573351,2.573e-05,2]
[407869910,1772856638798,-500.0,2.573e-05,2]
[407869911,1772856638809,-500.0,2.573e-05,2]
[407869912,1772856638819,-500.0,2.573e-05,2]
[407869913,1772856638829,-500.0,2.573e-05,2]
[407869914,1772856638839,-500.0,2.573e-05,2]
[407869915,1772856638848,-500.0,2.573e-05,2]
[407869916,1772856638860,-62901.24273304,2.6e-05,2]
[407869942,1772856646446,-6992.73311494,2.6e-05,2]
[407869943,1772856646457,-921.64530477,2.6e-05,2]
[407869957,1772857824558,-2260.56606966,2.168e-05,2]
[407870245,1772857842675,-2502.10511178,2.168e-05,2]
[407870246,1772857842685,-285.86595905,2.179e-05,2]
[407870247,1772857842784,-124.76925834,2.179e-05,2]
[407870248,1772857842793,-1596.50880408,2.19e-05,2]
[407870266,1772857845510,-2697.92702565,2.19e-05,2]
[407870267,1772857845520,-500.0,2.323e-05,2]
[407870268,1772857845529,-500.0,2.323e-05,2]
[407870269,1772857845538,-500.0,2.323e-05,2]
[407870270,1772857845547,-500.0,2.323e-05,2]
[407870271,1772857845557,-500.0,2.323e-05,2]
[407870272,1772857845566,-500.0,2.323e-05,2]
[407870273,1772857845575,-500.0,2.323e-05,2]
[407870274,1772857845584,-6422.04467538,2.35e-05,2]
[407870275,1772857845596,-23204.8203807,2.35e-05,2]
[407870286,1772858116781,6000.0,0.000114,120]
[407870287,1772858614547,1377.09278879,2e-05,2]
[407870288,1772858630045,5000.0,2e-05,2]
[407870290,1772858784404,175.941698,1.565e-05,2]
[407870291,1772858784610,175.941698,1.894e-05,2]
[407870351,1772859031664,-2260.56606966,2.031e-05,2]
[407870353,1772859031673,-406.67818874,2.176e-05,2]
[407870355,1772859031683,-300.0,2.321e-05,2]
[407870357,1772859031692,-300.0,2.321e-05,2]
[407870359,1772859031701,-300.0,2.321e-05,2]
[407870361,1772859031710,-300.0,2.321e-05,2]
[407870363,1772859031719,-300.0,2.321e-05,2]
[407870365,1772859031728,-1200.0,2.321e-05,2]
[407870367,1772859031738,-500.0,2.323e-05,2]
[407870369,1772859031746,-500.0,2.323e-05,2]
[407870371,1772859031756,-500.0,2.323e-05,2]
[407870373,1772859031765,-500.0,2.323e-05,2]
[407870375,1772859031774,-500.0,2.323e-05,2]
[407870377,1772859031783,-500.0,2.323e-05,2]
[407870379,1772859031793,-6011.03375442,2.35e-05,2]
[407870381,1772859031804,-2521.89218845,2.35e-05,2]
[407870383,1772859031815,-13409.2121911,2.35e-05,2]
[407870556,1772859042992,-14559.34357715,2.35e-05,2]
[407870565,1772859045812,-3543.98595379,2.35e-05,2]
[407870568,1772859463010,-5000.0,2.28e-05,2]
[407870569,1772859463030,-500.0,2.323e-05,2]
[407870570,1772859463049,-500.0,2.323e-05,2]
[407870571,1772859463070,-500.0,2.323e-05,2]
[407870572,1772859463089,-500.0,2.323e-05,2]
[407870573,1772859463108,-402.79619468,2.326e-05,2]
[407870574,1772859463128,-300.0,2.349e-05,2]
[407870575,1772859463146,-12297.20380532,2.35e-05,2]
[407870576,1772859536663,-2697.92702565,2.326e-05,2]
[407870577,1772859536683,-7302.07297435,2.35e-05,2]
[407870579,1772859583805,-10000.0,2.35e-05,2]
[407870580,1772859623909,-4821.26390372,2.35e-05,2]
[407870581,1772859716442,-4821.26390372,2.326e-05,2]
[407870582,1772859716463,-394.74027078,2.338e-05,2]
[407870583,1772859716483,-4783.9958255,2.35e-05,2]
[407870610,1772860231792,-404.8369014,2.329e-05,2]
[407870613,1772860231802,-8140.57338765,2.329e-05,2]
[407870968,1772860240576,-0.00354849,2.329e-05,2]
[407871246,1772860245850,-464.87788521,2.329e-05,2]
[407871247,1772860245957,-12316.60829916,2.329e-05,2]
[407871248,1772860245969,-2440.95,2.329e-05,2]
[407871252,1772860544366,-151.0,3.1e-05,30]
[407871253,1772860545377,-151.0,3.1e-05,30]
[407871254,1772860546136,-151.0,3.1e-05,30]
[407871255,1772860546923,-151.0,3.1e-05,30]
[407871256,1772860547493,-151.0,3.1e-05,30]
[407871257,1772860548172,-151.0,3.1e-05,30]
[407871258,1772860548737,-151.0,3.1e-05,30]
[407871259,1772860549261,-151.0,3.1e-05,30]
[407871260,1772860549933,-151.0,3.1e-05,30]
[407871261,1772860550452,-151.0,3.1e-05,30]
[407871262,1772860551898,-151.0,3.1e-05,30]
[407871263,1772860551967,-151.0,3.1e-05,30]
[407871264,1772860552119,-151.0,3.1e-05,30]
[407871265,1772860552704,-151.0,3.1e-05,30]
[407871266,1772860553337,-151.0,3.1e-05,30]
[407871267,1772860553743,-151.0,3.1e-05,30]
[407871268,1772860554298,-151.0,3.1e-05,30]
[407871269,1772860554890,-151.0,3.1e-05,30]
[407871270,1772860555402,-151.0,3.1e-05,30]
[407871271,1772860555970,-131.0,3.1e-05,30]
[407871272,1772860555991,-20.0,3.11e-05,30]
[407871273,1772860556427,-151.0,3.11e-05,30]
[407871274,1772860556945,-151.0,3.11e-05,30]
[407871275,1772860557356,-151.0,3.11e-05,30]
[407871276,1772860557792,-151.0,3.11e-05,30]
[407871277,1772860558207,-151.0,3.11e-05,30]
[407871278,1772860558627,-151.0,3.11e-05,30]
[407871279,1772860558988,-151.0,3.11e-05,30]
[407871280,1772860559375,-151.0,3.11e-05,30]
[407871281,1772860559700,-151.0,3.11e-05,30]
[407871282,1772860560028,-151.0,3.11e-05,30]
[407871283,1772860560436,-151.0,3.11e-05,30]
[407871284,1772860560801,-151.0,3.11e-05,30]
[407871285,1772860561186,-151.0,3.11e-05,30]
[407871286,1772860561506,-151.0,3.11e-05,30]
[407871287,1772860562922,-151.0,3.11e-05,30]
[407871288,1772860563017,-151.0,3.11e-05,30]
[407871289,1772860563066,-151.0,3.11e-05,30]
[407871290,1772860563137,-151.0,3.11e-05,30]
[407871291,1772860563559,-151.0,3.11e-05,30]
[407871292,1772860564094,-111.0,3.11e-05,30]
[407871293,1772860564118,-40.0,3.12e-05,30]
[407871294,1772860564431,-151.0,3.12e-05,30]
[407871295,1772860564971,-151.0,3.12e-05,30]
[407871296,1772860565285,-151.0,3.12e-05,30]
[407871297,1772860565899,-151.0,3.12e-05,30]